bitfinex-derivatives/quotes_BTCF0:USTF0_20241130
["timestamp","ask_amount","ask_price","bid_price","bid_amount"]
[1732958346516,0.1238,96819.0,96817.0,0.051625]
[1732958346903,0.1238,96819.0,96818.0,0.0612]
[1732958347317,0.13629878,96819.0,96818.0,0.0612]
[1732958349015,0.13629878,96819.0,96818.0,0.0622]
[1732958349516,0.13629878,96819.0,96818.0,0.0632]
[1732958351420,0.1238,96819.0,96818.0,0.0632]
[1732958353605,0.01229883,96820.0,96818.0,0.0632]
[1732958353815,0.1238,96820.0,96819.0,0.051624]
[1732958354219,0.05162,96827.0,96823.0,0.051622]
[1732958354415,0.051621,96825.0,96823.0,0.051622]
[1732958354611,0.1238,96824.0,96823.0,0.051622]
[1732958356405,0.1248,96824.0,96823.0,0.051622]
[1732958361717,0.001,96824.0,96823.0,0.051622]
[1732958361910,0.1248,96824.0,96823.0,0.051622]
[1732958362416,0.001,96824.0,96823.0,0.051622]
[1732958362716,0.1248,96824.0,96823.0,0.051622]
[1732958370231,0.001,96824.0,96823.0,0.051622]
[1732958370524,0.12476,96824.0,96823.0,0.051622]
[1732958370722,0.001,96824.0,96823.0,0.051622]
[1732958371620,0.01210045,96833.0,96832.0,0.051617]
[1732958371820,0.00154935,96844.0,96843.0,0.051611]
[1732958372126,0.06523926,96844.0,96843.0,0.051611]
[1732958372326,0.20752158,96844.0,96843.0,0.051611]
[1732958372530,0.33128158,96844.0,96843.0,0.051611]
[1732958372724,0.20752158,96844.0,96843.0,0.051611]
[1732958372929,0.33128158,96844.0,96843.0,0.051611]
[1732958373126,0.33728158,96844.0,96843.0,0.052611]
[1732958374737,0.34628158,96844.0,96843.0,0.053611]
[1732958375427,0.34628158,96844.0,96843.0,0.002]
[1732958375625,0.34628158,96844.0,96843.0,0.053611]
[1732958376332,0.35859338,96844.0,96843.0,0.053611]
[1732958378125,0.30698238,96844.0,96843.0,0.053611]
[1732958381335,0.30698238,96844.0,96843.0,0.002]
[1732958381928,0.18322238,96844.0,96843.0,0.002]
[1732958382133,0.30698238,96844.0,96843.0,0.002]
[1732958384240,0.18322238,96844.0,96843.0,0.002]
[1732958384431,0.30698238,96844.0,96843.0,0.002]
[1732958399652,0.30698238,96844.0,96843.0,0.20851983]
[1732958403046,0.41024176,96844.0,96843.0,0.18064755]
[1732958410043,0.43090923,96844.0,96843.0,0.18064755]
[1732958412254,0.43090923,96844.0,96843.0,0.09800755]
[1732958412645,0.43090923,96844.0,96843.0,0.02135253]
[1732958413450,0.48252023,96844.0,96843.0,0.02135253]
[1732958414047,0.48252023,96844.0,96843.0,5.3e-07]
[1732958414449,0.051622,96824.0,96823.0,0.20656249]
[1732958414654,0.896982,96824.0,96823.0,0.20656249]
[1732958414851,1.05208747,96824.0,96823.0,0.20656249]
[1732958415948,1.15636818,96824.0,96823.0,0.20656249]
[1732958420764,1.15636818,96824.0,96823.0,0.20340868]
[1732958421566,1.16855352,96824.0,96823.0,0.17653812]
[1732958423570,1.16855352,96824.0,96823.0,0.17089854]
[1732958423773,1.16855352,96824.0,96823.0,0.14884724]
[1732958424065,1.16855352,96824.0,96823.0,0.14302684]
[1732958424466,1.16855352,96824.0,96802.0,0.0312]
[1732958424467,1.13760442,96824.0,96802.0,0.0312]
[1732958424671,0.3608,96803.0,96802.0,0.0312]
[1732958425854,0.3608,96803.0,96802.0,0.0332]
[1732958426055,0.3608,96803.0,96802.0,0.0342]
[1732958427372,0.3608,96803.0,96802.0,0.003]
[1732958427861,0.3608,96803.0,96802.0,0.2096073]
[1732958433266,0.37278045,96803.0,96802.0,0.2096073]
[1732958435467,0.65499919,96803.0,96802.0,0.2096073]
[1732958435863,0.66020152,96803.0,96802.0,0.2096073]
[1732958441378,0.66020152,96803.0,96802.0,0.4162146]
[1732958443078,0.29940152,96803.0,96802.0,0.4162146]
[1732958443382,0.66020152,96803.0,96802.0,0.4162146]
[1732958445790,0.65499919,96803.0,96802.0,0.4162146]
[1732958448482,0.52843919,96803.0,96802.0,0.4162146]
[1732958448689,0.051625,96819.0,96809.0,0.051629]
[1732958448985,0.15597274,96817.0,96813.0,0.051627]
[1732958449287,0.051622,96824.0,96815.0,0.051626]
[1732958449492,0.15597274,96818.0,96815.0,0.051626]
[1732958449694,0.15597274,96816.0,96815.0,0.051626]
[1732958449896,0.28253274,96819.0,96815.0,0.051626]
[1732958450092,0.12756,96819.0,96815.0,0.051626]
[1732958450498,0.15469368,96818.0,96815.0,0.051626]
[1732958451297,0.20631868,96818.0,96815.0,0.051626]
[1732958452004,0.002,96816.0,96815.0,0.051626]
[1732958452694,0.21231868,96818.0,96815.0,0.051626]
[1732958453596,0.002,96816.0,96815.0,0.051626]
[1732958454102,0.006,96816.0,96815.0,0.051626]
[1732958454692,0.002,96816.0,96815.0,0.051626]
[1732958454897,0.002,96816.0,96815.0,0.25820555]
[1732958455400,0.004,96816.0,96815.0,0.20657955]
[1732958456695,0.006,96816.0,96815.0,0.20657955]
[1732958475930,0.31622254,96816.0,96815.0,0.20657955]
[1732958482323,0.31822254,96816.0,96815.0,0.20657955]
[1732958482721,0.31822254,96816.0,96815.0,0.13367896]
[1732958482920,0.31422254,96816.0,96815.0,0.13367896]
[1732958483122,0.32122254,96816.0,96815.0,0.13367896]
[1732958484614,0.32122254,96816.0,96815.0,0.12867896]
[1732958485212,0.32642286,96816.0,96815.0,0.12867896]
[1732958487418,0.49772286,96816.0,96815.0,0.12867896]
[1732958487627,0.32642286,96816.0,96815.0,0.12867896]
[1732958490132,0.32642286,96816.0,96815.0,0.10615998]
[1732958490426,0.45250286,96816.0,96815.0,0.10615998]
[1732958492415,0.45250286,96816.0,96815.0,0.0966854]
[1732958497630,0.62380286,96816.0,96815.0,0.0966854]
[1732958501230,0.45250286,96816.0,96815.0,0.0966854]
[1732958502932,0.45254286,96816.0,96815.0,0.0966854]
[1732958504729,1.17414286,96816.0,96815.0,0.30326495]
[1732958512450,0.45254286,96816.0,96815.0,0.30326495]
[1732958512651,1.17414286,96816.0,96815.0,0.30326495]
[1732958514644,1.17414286,96816.0,96815.0,0.20657955]
[1732958514840,1.17414286,96816.0,96815.0,0.18895115]
[1732958515845,1.04802286,96816.0,96815.0,0.18895115]
[1732958516049,1.17414286,96816.0,96815.0,0.18895115]
[1732958529251,1.60834286,96816.0,96815.0,0.18895115]
[1732958531356,1.60834286,96816.0,96815.0,0.15289241]
[1732958531852,0.051633,96803.0,96802.0,0.4082146]
[1732958532053,0.051633,96803.0,96802.0,0.3852146]
[1732958532054,0.54292033,96803.0,96802.0,0.3852146]
[1732958532255,0.69846402,96803.0,96802.0,0.3852146]
[1732958532462,0.80175326,96803.0,96802.0,0.3852146]
[1732958537262,0.81370831,96803.0,96802.0,0.3852146]
[1732958540166,0.71041907,96803.0,96802.0,0.3852146]
[1732958540362,0.52829874,96803.0,96802.0,0.3852146]
[1732958540553,0.37275505,96803.0,96802.0,0.4368476]
[1732958540761,0.32285505,96803.0,96802.0,0.4368476]
[1732958541458,0.33483033,96803.0,96802.0,0.4368476]
[1732958542664,0.38646333,96803.0,96802.0,0.4368476]
[1732958543861,0.38646333,96803.0,96802.0,0.3852146]
[1732958549365,0.06360828,96803.0,96802.0,0.3852146]
[1732958564378,0.01197528,96803.0,96802.0,0.7976476]
[1732958564679,0.051629,96810.0,96809.0,0.051629]
[1732958565871,0.055629,96810.0,96809.0,0.051629]
[1732958566476,0.057629,96810.0,96809.0,0.051629]
[1732958566983,0.06979515,96810.0,96809.0,0.051629]
[1732958568678,0.06979515,96810.0,96802.0,0.7466146]
[1732958568679,0.01816615,96810.0,96802.0,0.7466146]
[1732958568878,0.051631,96807.0,96806.0,0.051631]
[1732958570883,0.053631,96807.0,96806.0,0.051631]
[1732958572593,0.054631,96807.0,96806.0,0.051631]
[1732958580593,0.051633,96804.0,96802.0,0.7981676]
[1732958580792,0.051633,96804.0,96802.0,0.7976476]
[1732958581194,0.051633,96803.0,96802.0,0.7976476]
[1732958587097,0.051633,96803.0,96802.0,0.7460146]
[1732958590898,0.051633,96803.0,96802.0,0.3852146]
[1732958591995,0.051633,96803.0,96802.0,0.5918219]
[1732958594905,0.412433,96803.0,96802.0,0.5918219]
[1732958604902,0.051633,96803.0,96802.0,0.5918219]
[1732958605102,0.412433,96803.0,96802.0,0.5918219]
[1732958605607,0.051633,96803.0,96802.0,0.5918219]
[1732958605908,0.412433,96803.0,96802.0,0.5918219]
[1732958606804,0.5674051,96803.0,96802.0,0.5918219]
[1732958618719,0.5674051,96803.0,96802.0,0.7984292]
[1732958618911,0.67070821,96803.0,96802.0,0.7984292]
[1732958619624,0.67070821,96803.0,96802.0,0.77341459]
[1732958620120,0.67583032,96803.0,96802.0,0.77341459]
[1732958622027,1.03663032,96803.0,96802.0,0.77341459]
[1732958622718,1.05730486,96803.0,96802.0,0.77341459]
[1732958624022,1.18182486,96803.0,96802.0,0.77341459]
[1732958633528,1.05730486,96803.0,96802.0,0.77341459]
[1732958633731,1.18182486,96803.0,96802.0,0.77341459]
[1732958640448,0.8885664,96803.0,96802.0,0.77341459]
[1732958640738,1.0130864,96803.0,96802.0,0.77341459]
[1732958640928,0.8885664,96803.0,96802.0,0.77341459]
[1732958641234,1.0130864,96803.0,96802.0,0.77341459]
[1732958641629,0.8885664,96803.0,96802.0,0.77341459]
[1732958641832,0.1669664,96803.0,96802.0,0.77341459]
[1732958642027,0.1370343,96803.0,96802.0,0.77341459]
[1732958655238,0.29237549,96803.0,96802.0,0.77341459]
[1732958655439,0.32267549,96803.0,96802.0,0.77341459]
[1732958663840,0.32267549,96803.0,96802.0,0.7494117]
[1732958665641,0.32267549,96803.0,96802.0,0.956019]
[1732958667942,0.34335044,96803.0,96802.0,0.956019]
[1732958668157,0.34335044,96803.0,96802.0,0.85225404]
[1732958669057,0.44665355,96803.0,96802.0,0.85225404]
[1732958670954,0.49828655,96803.0,96802.0,0.85225404]
[1732958675459,0.49840655,96803.0,96802.0,0.85225404]
[1732958680155,0.49840655,96803.0,96802.0,0.82105461]
[1732958690869,0.49840655,96803.0,96802.0,1.02766191]
[1732958691459,0.49840655,96803.0,96802.0,1.01093992]
[1732958691660,0.50361898,96803.0,96802.0,0.6645767]
[1732958692068,0.50361898,96803.0,96802.0,0.5982337]
[1732958692370,0.49840655,96803.0,96802.0,0.5932337]
[1732958692569,0.50349079,96803.0,96802.0,0.5242657]
[1732958692777,0.50349079,96803.0,96802.0,0.4045447]
[1732958693068,0.50349079,96803.0,96802.0,0.3466397]
[1732958693069,0.49840655,96803.0,96802.0,0.3466397]
[1732958693366,0.37324655,96803.0,96802.0,0.2018537]
[1732958693567,0.50370654,96803.0,96802.0,0.1489437]
[1732958694267,0.051643,96783.0,96782.0,0.00154971]
[1732958694568,0.537643,96783.0,96782.0,0.00154971]
[1732958694771,0.69160778,96783.0,96782.0,0.00154971]
[1732958695376,0.69260778,96783.0,96782.0,0.00754971]
[1732958695674,0.69360778,96783.0,96782.0,0.00854971]
[1732958702362,0.70592334,96783.0,96782.0,0.00854971]
[1732958703572,0.70592334,96783.0,96782.0,0.007]
[1732958703775,0.70492334,96783.0,96782.0,0.003]
[1732958704180,0.70392334,96783.0,96782.0,0.002]
[1732958704471,0.70392334,96783.0,96782.0,0.001]
[1732958704774,0.70392334,96783.0,96782.0,0.003]
[1732958705872,0.72460158,96783.0,96782.0,0.003]
[1732958706172,0.72460158,96783.0,96782.0,0.002]
[1732958706370,0.72460158,96783.0,96782.0,0.003]
[1732958708574,0.59940158,96783.0,96782.0,0.003]
[1732958708775,0.72416158,96783.0,96782.0,0.003]
[1732958713979,0.54775858,96783.0,96782.0,0.003]
[1732958714281,0.65184034,96783.0,96782.0,0.003]
[1732958718174,0.52708034,96783.0,96782.0,0.003]
[1732958718377,0.65184034,96783.0,96782.0,0.003]
[1732958720471,0.52708034,96783.0,96782.0,0.003]
[1732958737884,0.57872334,96783.0,96782.0,0.003]
[1732958753099,0.70420334,96783.0,96782.0,0.003]
[1732958754196,0.57872334,96783.0,96782.0,0.003]
[1732958754399,0.70420334,96783.0,96782.0,0.003]
[1732958768711,0.70348334,96783.0,96782.0,0.003]
[1732958772013,0.70348334,96783.0,96782.0,0.002]
[1732958772212,0.70348334,96783.0,96782.0,0.003]
[1732958773214,0.70748334,96783.0,96782.0,0.002]
[1732958773411,0.65584034,96783.0,96769.0,0.00012497]
[1732958773616,0.053687,96779.0,96769.0,0.00012497]
[1732958773912,0.50359556,96783.0,96782.0,0.09927599]
[1732958774114,0.50287556,96783.0,96782.0,0.09927599]
[1732958774319,0.65803633,96783.0,96782.0,0.09927599]
[1732958774618,0.70967933,96783.0,96782.0,0.09927599]
[1732958774818,0.70867933,96783.0,96782.0,0.09927599]
[1732958775226,0.70467933,96783.0,96782.0,0.09927599]
[1732958775815,0.70867933,96783.0,96782.0,0.09927599]
[1732958776031,0.70867933,96783.0,96782.0,0.02701189]
[1732958777220,0.70967933,96783.0,96782.0,0.02701189]
[1732958784429,0.70967933,96783.0,96782.0,0.23366188]
[1732958785017,0.81300379,96783.0,96782.0,0.23366188]
[1732958786328,0.81300379,96783.0,96782.0,0.21028539]
[1732958790026,0.45220379,96783.0,96782.0,0.21028539]
[1732958790237,1.17380379,96783.0,96782.0,0.21028539]
[1732958791124,1.17380379,96783.0,96782.0,0.08892763]
[1732958792735,1.17380379,96783.0,96782.0,0.03662236]
[1732958793031,1.17909888,96783.0,96782.0,0.03662236]
[1732958793424,1.04904379,96783.0,96782.0,0.03662236]
[1732958793626,1.17496379,96783.0,96782.0,0.03662236]
[1732958793921,1.1800407,96783.0,96782.0,0.03662236]
[1732958797340,1.17496379,96783.0,96782.0,0.03662236]
[1732958798041,1.17496379,96783.0,96782.0,0.00762236]
[1732958798538,1.18019821,96783.0,96782.0,0.21427235]
[1732958811045,1.18019821,96783.0,96782.0,0.20137037]
[1732958811250,1.18019821,96783.0,96782.0,0.18846839]
[1732958811947,1.05427821,96783.0,96782.0,0.18846839]
[1732958812150,1.18019821,96783.0,96782.0,0.18846839]
[1732958815447,1.05427821,96783.0,96782.0,0.18846839]
[1732958815751,1.18019821,96783.0,96782.0,0.18846839]
[1732958815947,1.18197525,96783.0,96782.0,0.18846839]
[1732958816148,0.05165,96770.0,96769.0,0.00012497]
[1732958816351,0.53837,96770.0,96769.0,0.00012497]
[1732958816554,0.69337163,96770.0,96769.0,0.00012497]
[1732958817037,0.69514867,96770.0,96769.0,0.00012497]
[1732958817952,0.69514867,96770.0,96769.0,0.00112497]
[1732958818448,0.69514867,96770.0,96769.0,0.00312497]
[1732958822059,0.70710576,96770.0,96769.0,0.00312497]
[1732958823257,0.58118576,96770.0,96769.0,0.00312497]
[1732958823461,0.70566576,96770.0,96769.0,0.00312497]
[1732958824360,0.58118576,96770.0,96769.0,0.00312497]
[1732958824553,0.70566576,96770.0,96769.0,0.00312497]
[1732958830656,0.70566576,96770.0,96769.0,0.20980272]
[1732958846870,0.70566576,96770.0,96769.0,0.41648047]
[1732958848777,0.70566576,96770.0,96769.0,0.46813147]
[1732958850874,0.34486576,96770.0,96769.0,0.46813147]
[1732958852271,0.16873576,96770.0,96769.0,0.46813147]
[1732958852577,0.412444,96782.0,96769.0,0.41648047]
[1732958852776,0.3608,96782.0,96780.0,0.051644]
[1732958853082,0.15518485,96781.0,96780.0,0.051644]
[1732958853764,0.15455691,96785.0,96784.0,0.051643]
[1732958854168,0.051642,96786.0,96784.0,0.051643]
[1732958854372,0.15502224,96785.0,96784.0,0.051643]
[1732958855982,0.15702224,96785.0,96784.0,0.051643]
[1732958857282,0.16202224,96785.0,96784.0,0.051643]
[1732958862877,0.007,96785.0,96784.0,0.051643]
[1732958863079,0.007,96785.0,96784.0,0.412443]
[1732958868181,0.007,96785.0,96784.0,0.051643]
[1732958872181,0.412434,96800.0,96798.0,0.051635]
[1732958873379,0.418434,96800.0,96798.0,0.052635]
[1732958873982,0.427434,96800.0,96798.0,0.053635]
[1732958874575,0.43991294,96800.0,96798.0,0.053635]
[1732958876288,0.07911294,96800.0,96798.0,0.053635]
[1732958876677,0.02747894,96800.0,96798.0,0.053635]
[1732958882389,0.3608,96799.0,96798.0,0.053635]
[1732958883587,0.3608,96799.0,96798.0,0.052635]
[1732958883792,0.3608,96799.0,96798.0,0.053635]
[1732958883793,0.3698,96799.0,96798.0,0.053635]
[1732958885391,0.3748,96799.0,96798.0,0.053635]
[1732958887802,0.014,96799.0,96798.0,0.053635]
[1732958887995,0.3748,96799.0,96798.0,0.053635]
[1732958889493,0.3748,96799.0,96798.0,0.002]
[1732958893904,0.426435,96799.0,96798.0,0.002]
[1732958899200,0.58214853,96799.0,96798.0,0.002]
[1732958906407,0.58214853,96799.0,96798.0,0.20861583]
[1732958906908,0.58356817,96799.0,96798.0,0.20861583]
[1732958910912,0.22276817,96799.0,96798.0,0.20861583]
[1732958911211,0.58356817,96799.0,96798.0,0.20861583]
[1732958915614,0.70812817,96799.0,96798.0,0.20861583]
[1732958926118,0.81143555,96799.0,96798.0,0.20861583]
[1732958926917,0.81143555,96799.0,96798.0,0.19983879]
[1732958927120,0.81143555,96799.0,96798.0,0.17013026]
[1732958927321,0.81143555,96799.0,96798.0,0.15311724]
[1732958927912,0.81143555,96799.0,96798.0,0.13431724]
[1732958931124,0.81143555,96799.0,96798.0,0.03900955]
[1732958931326,0.81143555,96799.0,96769.0,0.41348047]
[1732958931625,0.05165,96770.0,96769.0,0.41348047]
[1732958932025,0.20879173,96770.0,96769.0,0.41348047]
[1732958933430,0.20879173,96770.0,96769.0,0.41748047]
[1732958933728,0.20879173,96770.0,96769.0,0.41948047]
[1732958934525,0.22081132,96770.0,96769.0,0.41948047]
[1732958940336,0.58161132,96770.0,96769.0,0.41948047]
[1732958942725,0.60229202,96770.0,96769.0,0.41948047]
[1732958943934,0.24149202,96770.0,96769.0,0.41948047]
[1732958944123,0.60229202,96770.0,96769.0,0.41948047]
[1732958954945,0.70563036,96770.0,96769.0,0.41948047]
[1732958962742,0.82979036,96770.0,96769.0,0.41948047]
[1732958963744,1.19059036,96770.0,96769.0,0.41948047]
[1732958969455,0.46899036,96770.0,96769.0,0.41948047]
[1732958969651,1.19059036,96770.0,96769.0,0.41948047]
[1732958973656,1.06643036,96770.0,96769.0,0.41948047]
[1732958973954,1.19059036,96770.0,96769.0,0.41948047]
[1732958975850,0.46899036,96770.0,96769.0,0.41948047]
[1732958976065,1.19059036,96770.0,96769.0,0.41948047]
[1732958978657,0.46899036,96770.0,96769.0,0.41948047]
[1732958978860,1.19059036,96770.0,96769.0,0.41948047]
[1732958981659,1.06643036,96770.0,96769.0,0.41948047]
[1732958981858,1.19059036,96770.0,96769.0,0.41948047]
[1732958982364,0.46899036,96770.0,96769.0,0.41948047]
[1732958982565,1.19059036,96770.0,96769.0,0.41948047]
[1732958983269,1.06643036,96770.0,96769.0,0.41948047]
[1732958983564,1.19059036,96770.0,96769.0,0.41948047]
[1732958983963,1.06643036,96770.0,96769.0,0.41948047]
[1732958984359,1.19059036,96770.0,96769.0,0.41948047]
[1732958984761,1.08725202,96770.0,96769.0,0.41948047]
[1732958985466,1.08725202,96770.0,96769.0,0.62615822]
[1732958997485,1.06657132,96770.0,96769.0,0.62615822]
[1732959005193,1.16990966,96770.0,96769.0,0.62615822]
[1732959024011,1.16990966,96770.0,96769.0,0.24798171]
[1732959025109,1.16999886,96770.0,96769.0,0.24798171]
[1732959035723,0.44839886,96770.0,96769.0,0.24798171]
[1732959035913,1.16999886,96770.0,96769.0,0.24798171]
[1732959040019,1.06666052,96770.0,96769.0,0.24798171]
[1732959040615,0.94250052,96770.0,96769.0,0.24798171]
[1732959040820,1.06662052,96770.0,96769.0,0.24798171]
[1732959043126,0.94250052,96770.0,96769.0,0.24798171]
[1732959043322,1.06662052,96770.0,96769.0,0.24798171]
[1732959056340,1.16995886,96770.0,96769.0,0.24798171]
[1732959060537,1.16995886,96770.0,96769.0,0.45465946]
[1732959060936,0.44835886,96770.0,96769.0,0.45465946]
[1732959061241,1.16995886,96770.0,96769.0,0.45465946]
[1732959066643,1.16995886,96770.0,96769.0,0.44747882]
[1732959068736,1.16995886,96770.0,96769.0,0.42129882]
[1732959069136,1.16995886,96770.0,96769.0,0.62797657]
[1732959070329,1.16995886,96770.0,96769.0,0.62203325]
[1732959070532,1.16995886,96770.0,96769.0,0.60891946]
[1732959070732,1.16995886,96770.0,96769.0,0.60120792]
[1732959070934,1.16995886,96770.0,96769.0,0.58729665]
[1732959071432,1.16995886,96770.0,96769.0,0.59029665]
[1732959072244,1.16995886,96770.0,96769.0,0.59229665]
[1732959072545,1.16995886,96770.0,96769.0,0.002]
[1732959072936,1.11830886,96770.0,96740.0,0.0113]
[1732959073132,0.7216,96750.0,96740.0,0.0113]
[1732959073332,0.412466,96741.0,96740.0,0.00974968]
[1732959073640,0.536586,96741.0,96740.0,0.00974968]
[1732959073837,0.69084511,96741.0,96740.0,0.00974968]
[1732959074047,0.69226475,96741.0,96740.0,0.00974968]
[1732959076340,0.79563407,96741.0,96740.0,0.00974968]
[1732959078135,0.80893127,96741.0,96740.0,0.00974968]
[1732959078540,0.80993127,96741.0,96740.0,0.01174968]
[1732959078850,0.80893127,96741.0,96740.0,0.01174968]
[1732959079349,0.80793127,96741.0,96740.0,0.00974968]
[1732959079537,0.80793127,96741.0,96740.0,0.01174968]
[1732959080853,0.80793127,96741.0,96720.0,9.406e-05]
[1732959080854,0.75626527,96741.0,96720.0,9.406e-05]
[1732959081050,0.414487,96730.0,96720.0,9.406e-05]
[1732959081250,0.12412,96729.0,96720.0,9.406e-05]
[1732959081450,0.28011116,96729.0,96720.0,9.406e-05]
[1732959082253,0.00141964,96725.0,96720.0,0.00309406]
[1732959082644,0.15577919,96724.0,96720.0,0.00309406]
[1732959082846,0.15577919,96724.0,96720.0,9.406e-05]
[1732959083054,0.00141964,96722.0,96720.0,0.00309406]
[1732959083853,0.05309564,96722.0,96720.0,0.00309406]
[1732959084159,0.00141964,96721.0,96720.0,0.00309406]
[1732959085344,0.00141964,96721.0,96720.0,0.00109406]
[1732959085546,0.00241964,96721.0,96720.0,0.00109406]
[1732959086148,0.00341964,96721.0,96720.0,0.00109406]
[1732959097970,0.00341964,96721.0,96718.0,0.04607106]
[1732959098168,0.00141964,96720.0,96718.0,0.04607106]
[1732959098562,0.00141964,96720.0,96719.0,0.051677]
[1732959100860,0.00241964,96720.0,96719.0,0.051677]
[1732959101070,0.00341964,96720.0,96719.0,0.051677]
[1732959106876,0.00341964,96720.0,96719.0,0.412477]
[1732959109083,0.00341964,96720.0,96719.0,0.42487961]
[1732959114490,0.00341964,96720.0,96719.0,0.412477]
[1732959123600,0.00341964,96720.0,96719.0,0.051677]
[1732959124096,0.05509664,96720.0,96719.0,0.051677]
[1732959126401,0.00341964,96720.0,96719.0,0.051677]
[1732959126898,0.03611964,96720.0,96719.0,0.051677]
[1732959128897,0.04851799,96720.0,96719.0,0.051677]
[1732959130300,0.10019499,96720.0,96719.0,0.051677]
[1732959131702,0.04851799,96720.0,96719.0,0.051677]
[1732959136501,0.10019499,96720.0,96719.0,0.051677]
[1732959148615,0.10019499,96720.0,96710.0,0.3608]
[1732959148616,0.10019499,96720.0,96714.0,0.05168]
[1732959149112,0.10019499,96720.0,96715.0,0.051679]
[1732959149317,0.10019499,96720.0,96716.0,0.051679]
[1732959149318,0.00141964,96718.0,96716.0,0.051679]
[1732959150424,0.09877535,96720.0,96716.0,0.051679]
[1732959150425,0.00141964,96717.0,96716.0,0.051679]
[1732959152421,0.00241964,96717.0,96716.0,0.051679]
[1732959152607,0.00341964,96717.0,96716.0,0.051679]
[1732959159226,0.00341964,96717.0,96708.0,0.3608]
[1732959159519,0.00141964,96713.0,96711.0,0.051682]
[1732959160423,0.00141964,96712.0,96711.0,0.051682]
[1732959161809,0.00241964,96712.0,96711.0,0.051682]
[1732959163125,0.00341964,96712.0,96711.0,0.051682]
[1732959165019,0.00341964,96712.0,96711.0,0.412482]
[1732959167118,0.00341964,96712.0,96711.0,0.051682]
[1732959182829,0.05510064,96712.0,96711.0,0.051682]
[1732959184226,0.3608,96723.0,96711.0,0.051682]
[1732959184428,0.3608,96744.0,96718.0,0.3608]
[1732959184629,0.053687,96740.0,96729.0,0.3608]
[1732959184825,0.051669,96736.0,96734.0,0.051669]
[1732959185227,0.15590939,96735.0,96734.0,0.051669]
[1732959185735,0.051666,96740.0,96729.0,0.3608]
[1732959185940,0.15558582,96739.0,96729.0,0.3608]
[1732959186234,0.001,96736.0,96729.0,0.3608]
[1732959186627,0.001,96736.0,96730.0,0.051672]
[1732959186628,0.15552497,96735.0,96730.0,0.051672]
[1732959186831,0.15552497,96735.0,96734.0,0.05167]
[1732959187738,0.15552497,96735.0,96734.0,0.05667]
[1732959187946,0.15444138,96739.0,96738.0,0.051667]
[1732959188447,0.175706,96740.0,96738.0,0.051667]
[1732959188642,0.15489055,96739.0,96738.0,0.051667]
[1732959189445,0.15489055,96739.0,96738.0,0.054667]
[1732959189842,0.15489055,96739.0,96738.0,0.004]
[1732959190544,0.20655755,96739.0,96738.0,0.004]
[1732959191746,0.20655755,96739.0,96738.0,0.21074398]
[1732959192054,0.20755755,96739.0,96738.0,0.16084398]
[1732959192442,0.20855755,96739.0,96738.0,0.16084398]
[1732959193352,0.20855755,96739.0,96738.0,0.11094398]
[1732959196857,0.22077244,96739.0,96738.0,0.11094398]
[1732959201055,0.24146128,96739.0,96738.0,0.11094398]
[1732959203462,0.36614128,96739.0,96738.0,0.11094398]
[1732959208351,0.72694128,96739.0,96738.0,0.11094398]
[1732959213063,0.60226128,96739.0,96738.0,0.11094398]
[1732959213252,0.72694128,96739.0,96738.0,0.11094398]
[1732959215262,0.67527428,96739.0,96738.0,0.11094398]
[1732959216959,0.67427428,96739.0,96738.0,0.11094398]
[1732959217155,0.67827428,96739.0,96738.0,0.11094398]
[1732959218066,0.67927428,96739.0,96738.0,0.11094398]
[1732959221664,0.67887428,96739.0,96738.0,0.11094398]
[1732959222179,0.31807428,96739.0,96738.0,0.11094398]
[1732959222363,0.67887428,96739.0,96738.0,0.11094398]
[1732959234286,0.55459428,96739.0,96738.0,0.11094398]
[1732959234490,0.67887428,96739.0,96738.0,0.11094398]
[1732959235275,0.67887428,96739.0,96724.0,0.051675]
[1732959235480,0.3608,96731.0,96724.0,0.051675]
[1732959235784,0.12428,96730.0,96725.0,0.051674]
[1732959235977,0.27967441,96730.0,96725.0,0.051674]
[1732959237985,0.27967441,96730.0,96725.0,0.054674]
[1732959238378,0.27967441,96730.0,96725.0,0.055674]
[1732959238588,0.27967441,96730.0,96726.0,0.0324]
[1732959239681,0.33134641,96730.0,96726.0,0.0324]
[1732959240086,0.33134641,96730.0,96726.0,0.0344]
[1732959240890,0.33134641,96730.0,96726.0,0.086074]
[1732959241277,0.051672,96729.0,96726.0,0.086074]
[1732959241679,0.15471717,96728.0,96726.0,0.087074]
[1732959242395,0.15471717,96728.0,96727.0,0.051673]
[1732959242689,0.27899717,96728.0,96727.0,0.051673]
[1732959242883,0.12428,96728.0,96727.0,0.051673]
[1732959243084,0.27919382,96728.0,96727.0,0.051673]
[1732959243882,0.15491382,96728.0,96727.0,0.051673]
[1732959244287,0.12428,96729.0,96728.0,0.051673]
[1732959244592,0.27867942,96729.0,96728.0,0.051673]
[1732959246096,0.27867942,96729.0,96728.0,0.052673]
[1732959248394,0.27867942,96729.0,96728.0,0.25943836]
[1732959249897,0.33035142,96729.0,96728.0,0.25943836]
[1732959250192,0.20607142,96729.0,96728.0,0.25943836]
[1732959250397,0.33011142,96729.0,96728.0,0.25943836]
[1732959252388,0.20607142,96729.0,96728.0,0.25943836]
[1732959252595,0.33011142,96729.0,96728.0,0.25943836]
[1732959253197,0.27843942,96729.0,96728.0,0.25943836]
[1732959261295,0.27843942,96729.0,96728.0,0.20776536]
[1732959261506,0.33011142,96729.0,96728.0,0.20776536]
[1732959271415,0.69091142,96729.0,96728.0,0.20776536]
[1732959275511,0.71160016,96729.0,96728.0,0.20776536]
[1732959283018,0.71160016,96729.0,96728.0,0.41453072]
[1732959309428,0.63923942,96729.0,96728.0,0.41453072]
[1732959310032,0.51519942,96729.0,96728.0,0.41453072]
[1732959310227,0.63971942,96729.0,96728.0,0.41453072]
[1732959315133,0.51519942,96729.0,96728.0,0.41453072]
[1732959315339,0.00068,96737.0,96736.0,0.051668]
[1732959315645,0.3608,96745.0,96744.0,0.051664]
[1732959315938,0.15541253,96737.0,96736.0,0.412468]
[1732959316131,0.15541253,96744.0,96736.0,0.3608]
[1732959316333,0.15541253,96746.0,96743.0,0.051664]
[1732959316638,0.13697355,96747.0,96743.0,0.051664]
[1732959316941,0.15595579,96745.0,96743.0,0.051664]
[1732959317338,0.12448,96748.0,96745.0,0.051664]
[1732959317533,0.15595579,96747.0,96745.0,0.051664]
[1732959317932,0.12448,96748.0,96745.0,0.051664]
[1732959318230,0.15522269,96747.0,96745.0,0.051664]
[1732959318942,0.16222269,96747.0,96745.0,0.051664]
[1732959321150,0.16622269,96747.0,96745.0,0.051664]
[1732959326348,0.16622269,96747.0,96746.0,0.3608]
[1732959326751,0.16622269,96747.0,96746.0,0.4225]